bitfinex/quotes_ETHUSD_20220109
["timestamp","ask_amount","ask_price","bid_price","bid_amount"]
[1641758767980,4.5306412,3209.2,3209.1,1.14681453]
[1641758768483,1.444113,3209.2,3209.1,1.14681453]
[1641758768882,0.95409323,3209.1,3207.0,1.0]
[1641758769082,0.03211404,3208.9,3207.1,0.45]
[1641758769320,2.61222376,3209.0,3207.1,0.45]
[1641758769321,0.01927336,3208.7,3207.1,0.45]
[1641758769524,1.09672703,3208.6,3207.5,0.77931]
[1641758769722,1.11356601,3207.9,3207.4,0.45]
[1641758769922,0.86356601,3207.9,3207.4,0.45]
[1641758770123,0.01746891,3207.7,3206.6,4.3601]
[1641758770322,0.00568424,3207.8,3206.7,0.07795]
[1641758770525,0.00454739,3207.6,3206.8,0.45]
[1641758770725,1.42129403,3207.7,3207.2,1.26710797]
[1641758770923,0.00397897,3207.5,3207.0,0.45]
[1641758771128,0.00454739,3207.6,3207.1,1.12873421]
[1641758771324,0.00341054,3207.4,3207.0,0.45]
[1641758771524,0.00397897,3207.5,3207.0,0.45]
[1641758771726,0.00284212,3207.3,3207.0,0.45]
[1641758772024,1.34537629,3207.2,3207.0,0.45]
[1641758772425,0.00170527,3207.1,3207.0,0.45]
[1641758773089,2.81975782,3207.1,3206.7,0.07793]
[1641758773287,3.13257744,3207.1,3206.1,0.45]
[1641758773484,1.5594368,3206.8,3206.1,0.45]
[1641758773688,1.5594368,3206.8,3206.2,0.00341054]
[1641758774086,0.7797184,3206.7,3206.2,0.00341054]
[1641758774486,1.23771597,3206.6,3206.2,0.00341054]
[1641758774688,0.7797184,3206.7,3206.2,0.00341054]
[1641758774885,0.00113685,3207.0,3206.2,0.00341054]
[1641758775287,0.00113685,3207.0,3206.6,1.22687874]
[1641758775488,0.00113685,3207.0,3206.6,1.67687874]
[1641758775686,0.00113685,3207.0,3206.7,0.00435107]
[1641758775886,0.00113685,3207.0,3206.6,0.45]
[1641758776289,1.52574769,3206.8,3206.6,0.45]
[1641758777929,3.10113685,3207.0,3206.9,7.77687084]
[1641758778129,1.17587711,3208.2,3206.9,10.86600842]
[1641758778329,3.9013472,3208.0,3207.0,0.09930105]
[1641758778527,0.00397896,3207.7,3207.1,0.45]
[1641758778728,0.00397896,3207.7,3207.2,0.07793]
[1641758778931,1.17317115,3207.4,3207.3,0.45]
[1641758779131,0.00341054,3207.6,3207.3,2.08629]
[1641758779331,0.00227369,3207.4,3207.3,2.08629]
[1641758779532,1.8471948,3208.3,3207.3,2.08629]
[1641758779731,0.00454739,3208.2,3207.3,0.45]
[1641758779930,2.65809174,3208.2,3207.3,0.45]
[1641758780133,0.00397897,3208.1,3207.4,1.29436766]
[1641758780332,0.00397897,3208.1,3207.4,2.15157766]
[1641758780574,0.00341054,3208.0,3207.4,2.07365766]
[1641758780774,0.00341054,3208.0,3207.5,0.45]
[1641758780974,0.00284212,3207.9,3207.5,0.45]
[1641758781373,1.26694639,3207.7,3207.6,0.77925]
[1641758781577,1.26694639,3207.7,3207.6,0.85717]
[1641758781776,1.26865166,3207.7,3207.6,0.07792]
[1641758781973,1.26865166,3207.7,3207.5,0.45]
[1641758782376,0.00113685,3207.6,3207.5,0.45]
[1641758784227,0.00113685,3207.6,3207.2,1.63642]
[1641758784421,0.00113685,3207.6,3207.3,0.45]
[1641758784622,0.00113685,3207.6,3207.1,0.45]
[1641758784823,0.01097314,3207.4,3206.9,0.87687084]
[1641758785030,0.79045314,3207.4,3207.2,0.00113684]
[1641758785231,0.79045314,3207.4,3207.0,0.00227369]
[1641758785232,0.85741,3207.4,3207.0,0.00227369]
[1641758785422,0.77948,3207.4,3207.0,0.00227369]
[1641758785624,2.65421564,3207.3,3207.0,0.00227369]
[1641758785824,12.45,3207.1,3205.8,0.14602677]
[1641758786025,12.45,3207.1,3205.5,0.45]
[1641758786026,0.77981,3206.1,3205.5,0.45]
[1641758786223,0.77981,3206.1,3205.9,0.00625266]
[1641758786931,1.26320563,3206.0,3205.5,1.18601266]
[1641758787124,1.26320563,3206.0,3205.6,0.00170527]
[1641758789369,1.26320563,3206.0,3205.6,1.56102527]
[1641758789770,1.26320563,3206.0,3205.7,0.00113685]
[1641758790771,1.26320563,3206.0,3205.7,0.78085685]
[1641758791171,1.26320563,3206.0,3205.7,0.00113685]
[1641758791819,1.26320563,3206.0,3205.7,0.78085685]
[1641758792317,3.1,3206.1,3205.7,0.78085685]
[1641758793318,3.1,3206.1,3205.9,0.77949]
[1641758793519,3.1,3206.1,3206.0,8.62796]
[1641758793717,0.00113685,3207.2,3206.1,18.32217593]
[1641758793917,1.17587711,3207.4,3206.2,3.5508129]
[1641758794118,1.17587711,3207.4,3206.2,0.82795]
[1641758794316,1.35269145,3207.2,3206.3,1.24719001]
[1641758794518,1.25269145,3207.2,3206.5,0.77947]
[1641758794720,1.25269145,3207.2,3206.6,0.45]
[1641758794721,1.52810855,3207.0,3206.6,0.45]
[1641758795118,0.00568424,3206.9,3206.6,0.45]
[1641758795318,0.00568424,3206.9,3206.2,0.45]
[1641758795571,0.00511581,3206.8,3205.8,4.43385]
[1641758795769,0.00511581,3206.8,3205.8,4.3559]
[1641758796073,0.00454739,3206.7,3205.8,4.3559]
[1641758796270,1.14520577,3206.1,3205.9,0.07796]
[1641758797274,1.14520577,3206.1,3206.0,0.77964]
[1641758797669,1.14634262,3206.1,3206.0,0.77964]
[1641758797969,1.14634262,3206.1,3205.8,2.38725]
[1641758799421,1.14634262,3206.1,3205.8,2.00929]
[1641758799621,1.14634262,3206.1,3205.8,0.45]
[1641758801022,1.14634262,3206.1,3205.9,0.77974]
[1641758801222,1.14634262,3206.1,3205.9,0.771836]
[1641758802024,0.00113685,3206.1,3205.9,0.771836]
[1641758802223,0.00113685,3206.1,3205.9,1.07997911]
[1641758802428,0.00113685,3206.1,3206.0,6.00923]
[1641758802622,0.00113685,3206.1,3206.0,1.55923]
[1641758804269,0.00113685,3206.1,3206.0,1.85923]
[1641758805075,0.00113685,3206.1,3206.0,1.55923]
[1641758805472,0.00113685,3206.1,3206.0,1.85923]
[1641758805674,0.00113685,3206.1,3206.0,1.93719]
[1641758805872,0.00113685,3206.1,3206.0,5.13719]
[1641758806275,0.00113685,3206.1,3206.0,1.93719]
[1641758806727,0.00113685,3206.1,3206.0,1.85923]
[1641758808125,0.00113685,3206.1,3206.0,1.55923]
[1641758808323,0.00113685,3206.1,3206.0,1.85923]
[1641758808523,0.00113685,3206.1,3206.0,1.55923]
[1641758808722,0.00113685,3206.1,3206.0,1.85923]
[1641758808924,0.00113685,3206.1,3206.0,5.20923]
[1641758809322,0.00113685,3206.1,3206.0,1.85923]
[1641758809522,0.00113685,3206.1,3206.0,1.93719]
[1641758810574,0.00113685,3206.1,3206.0,1.85923]
[1641758810770,0.00113685,3206.1,3206.0,1.55923]
[1641758812671,0.00113685,3206.1,3206.0,1.85923]
[1641758812872,0.00113685,3206.1,3206.0,6.40923]
[1641758813873,0.00113685,3206.1,3206.0,10.35923]
[1641758814073,0.00113685,3206.1,3206.0,1.55923]
[1641758815334,0.00113685,3206.1,3206.0,1.85923]
[1641758815727,0.00113685,3206.1,3206.0,6.30923]
[1641758815931,0.00146852,3207.0,3206.1,8.35]
[1641758816129,0.00146852,3207.0,3206.6,0.77936]
[1641758816330,0.00454739,3206.9,3206.7,0.45440653]
[1641758816530,0.00454739,3206.9,3206.8,3.850843]
[1641758816732,0.00146852,3207.0,3206.8,0.45]
[1641758817130,0.00146852,3207.0,3206.9,2.4765552]
[1641758817334,0.00146852,3207.0,3206.9,2.89797647]
[1641758817535,0.00658433,3207.0,3206.9,2.99454984]
[1641758817730,0.00658433,3207.0,3206.9,0.45]
[1641758818184,0.00511581,3207.0,3206.9,2.87872953]
[1641758818484,0.00511581,3207.0,3206.9,0.41253]
[1641758818886,0.00511581,3207.0,3206.5,1.3075]
[1641758819083,0.01942268,3206.9,3206.5,0.43729]
[1641758819284,0.02397007,3206.9,3206.5,0.43729]
[1641758819484,0.00397896,3206.8,3206.5,0.43729]
[1641758819684,1.0891476,3207.1,3206.5,0.43729]
[1641758819883,1.0891476,3207.1,3206.6,0.00113684]
[1641758820083,1.5522028,3206.8,3206.7,0.76693]
[1641758820284,0.00113684,3207.0,3206.7,4.62507526]
[1641758820499,0.00113684,3207.0,3206.8,0.45]
[1641758820692,0.00625265,3207.9,3206.8,0.45]
[1641758820888,1.17587711,3207.8,3206.9,2.64705392]
[1641758821089,1.18156134,3207.8,3207.1,1.13772196]
[1641758821288,0.0051158,3207.7,3207.2,1.55858]
[1641758821725,0.00454738,3207.6,3207.2,1.55858]
[1641758821919,0.00454738,3207.6,3207.3,0.00639674]
[1641758821920,1.32469663,3207.4,3207.3,0.00639674]
[1641758822124,1.32469663,3207.4,3207.2,1.55858]
[1641758822326,1.32810716,3207.4,3207.2,1.55858]
[1641758822621,0.00284211,3207.3,3207.2,1.55858]
[1641758823230,0.00284211,3207.3,3207.0,0.77943]
[1641758823621,2.32392523,3207.4,3207.0,0.77943]
[1641758823622,0.00227369,3207.2,3207.0,0.77943]
[1641758824022,0.00170526,3207.1,3206.9,0.45]
[1641758824421,0.7794659,3207.3,3206.9,0.45]
[1641758824422,0.78230801,3207.3,3206.9,0.45]
[1641758824822,0.00227369,3207.2,3207.0,0.77941]
[1641758825222,0.00170526,3207.1,3207.0,0.77941]
[1641758828583,0.00170526,3207.1,3207.0,5.47941]
[1641758828980,0.00170526,3207.1,3207.0,0.77941]
[1641758829625,0.00170526,3207.1,3207.0,1.07941]
[1641758830023,0.00170526,3207.1,3207.0,0.77941]
[1641758832978,0.00170526,3207.1,3207.0,0.76876345]
[1641758834373,0.00170526,3207.1,3206.7,0.07793]
[1641758834576,0.01335677,3207.0,3206.6,0.00113685]
[1641758834874,0.01335677,3207.0,3206.4,0.0022737]
[1641758835274,2.75296718,3207.1,3206.2,0.00341055]
[1641758835474,1.26534697,3206.7,3206.2,0.00341055]
[1641758835690,1.26534697,3206.7,3206.2,0.08136055]
[1641758835976,1.26534697,3206.7,3206.3,0.78242212]
[1641758836377,1.26534697,3206.7,3206.4,0.0022737]
[1641758836581,2.04492237,3206.7,3206.4,0.0022737]
[1641758837237,2.04492237,3206.7,3206.3,0.77957]
[1641758837238,1.26534697,3206.7,3206.3,0.77957]
[1641758837435,1.26534697,3206.7,3206.4,0.0145384]
[1641758837634,1.26534697,3206.7,3206.4,0.0168121]
[1641758837835,1.26534697,3206.7,3206.1,2.00911]
[1641758837836,1.26534697,3206.7,3206.5,0.00170528]
[1641758838238,1.26534697,3206.7,3206.2,0.00341055]
[1641758838436,1.26534697,3206.7,3206.3,0.77958]
[1641758838637,2.04493977,3206.7,3206.3,0.77958]
[1641758838837,2.04493977,3206.7,3206.4,0.0022737]
[1641758839036,1.26534697,3206.7,3206.4,0.0022737]
[1641758839238,1.26534697,3206.7,3206.2,0.00341055]
[1641758839835,1.26534697,3206.7,3206.5,0.77954]
[1641758841979,0.00170526,3207.1,3206.5,1.22954]
[1641758842178,0.00170526,3207.1,3206.6,0.07795]
[1641758842381,0.00170526,3207.1,3206.8,0.77942]
[1641758842782,0.00170526,3207.1,3206.7,0.52795]
[1641758842981,0.7795243,3207.0,3206.7,0.07795]
[1641758843980,1.39333554,3206.8,3206.7,0.07795]
[1641758844223,2.17294794,3206.8,3206.7,0.07795]
[1641758845427,12.62444272,3206.8,3206.2,0.00341055]
[1641758845626,0.0304714,3206.7,3206.2,0.00341055]
[1641758845827,0.08206506,3206.7,3206.1,0.00397897]
[1641758846027,1.08206506,3206.7,3205.6,0.00682109]
[1641758846227,3.18530084,3206.6,3205.6,0.00682109]
[1641758846425,1.29807382,3205.9,3205.6,0.00682109]
[1641758846627,4.26096804,3205.8,3205.6,0.00682109]
[1641758846829,2.87507121,3205.7,3205.5,0.00738951]
[1641758847035,3.17507121,3205.7,3205.5,0.00738951]
[1641758847227,13.46338459,3205.6,3205.5,0.00738951]
[1641758847430,2.71338459,3205.6,3205.3,0.00852636]
[1641758847628,1.3816902,3205.4,3205.3,0.00852636]
[1641758848081,1.6816902,3205.4,3205.3,0.00852636]
[1641758848578,7.6816902,3205.4,3205.3,0.00852636]
[1641758848774,10.54863689,3205.4,3205.3,0.00852636]
[1641758849174,13.64863689,3205.4,3205.3,0.00852636]
[1641758850178,7.64863689,3205.4,3205.3,0.00852636]
[1641758851179,3.4,3205.4,3205.3,0.00852636]
[1641758853030,3.1,3205.4,3205.3,0.00852636]
[1641758853630,3.1,3205.4,3205.3,0.78831636]
[1641758855032,3.1,3205.4,3205.3,0.00852636]
[1641758857081,3.1,3205.4,3205.3,0.78836636]
[1641758857382,3.1,3205.4,3205.3,1.82939843]
[1641758857580,3.1,3205.4,3205.3,3.20987931]
[1641758857779,3.1,3205.4,3205.3,3.65987931]
[1641758857981,3.1,3205.4,3205.3,3.95987931]
[1641758858382,3.1,3205.4,3205.3,14.30987931]
[1641758859084,0.00145218,3205.9,3205.4,12.45]
[1641758859361,0.00145218,3205.9,3205.7,0.80852299]
[1641758859561,3.9062,3207.0,3206.0,0.00984709]
[1641758859761,0.1,3207.0,3206.1,0.45]
[1641758859965,0.1,3207.0,3206.1,0.45397897]
[1641758860162,1.41427429,3206.9,3206.4,1.42745535]
[1641758860362,1.41427429,3206.9,3206.6,0.77946]
[1641758860564,1.41427429,3206.9,3206.6,1.22946]
[1641758860765,1.41427429,3206.9,3206.6,0.45]
[1641758862986,1.41427429,3206.9,3206.7,0.77947]
[1641758863580,0.1,3207.0,3206.7,0.77947]
[1641758863783,0.1,3207.0,3206.8,1.29675988]
[1641758863983,0.1,3207.0,3206.9,3.97939]
[1641758864282,0.1,3207.0,3206.9,4.42939]
[1641758864481,0.1,3207.0,3206.9,5.81617484]
[1641758864680,0.1,3207.0,3206.9,6.11617484]
[1641758865281,0.1,3207.0,3206.9,9.81617484]
[1641758865879,0.1,3207.0,3206.9,10.81617484]
[1641758866081,0.1,3207.0,3206.9,10.89412484]
[1641758866481,0.779235,3208.2,3207.1,0.00865232]
[1641758866732,0.00143602,3207.5,3207.2,0.45]
[1641758868031,0.00143602,3207.5,3207.3,1.3732112]
[1641758868231,0.00568423,3207.8,3207.4,0.45]
[1641758868430,0.00568423,3207.8,3207.5,0.45]
[1641758868632,0.0051158,3207.7,3207.6,0.45]
[1641758869632,0.1051158,3207.7,3207.6,0.45]
[1641758870033,0.0551158,3207.7,3207.6,0.4421983]
[1641758870492,0.0051158,3207.7,3207.6,0.4421983]
[1641758871283,0.0051158,3207.7,3206.8,0.45]
[1641758871482,1.42001092,3207.0,3206.7,1.55881]
[1641758871683,1.42001092,3207.0,3206.9,0.00454738]
[1641758871883,1.72001092,3207.0,3206.8,0.00511581]
[1641758872083,1.72001092,3207.0,3206.5,0.00682108]
[1641758872283,1.09502676,3206.9,3206.5,0.00682108]
[1641758872885,0.7796133,3206.8,3206.3,0.00795792]
[1641758873686,0.00143602,3207.5,3206.3,0.00795792]
[1641758873885,0.7794492,3207.4,3206.7,0.77945]
[1641758874088,1.32342561,3207.3,3206.8,1.6166071]
[1641758874332,1.32342561,3207.3,3206.8,0.45511581]
[1641758874532,1.32342561,3207.3,3206.9,0.00454738]
[1641758874734,1.29306294,3207.2,3206.9,0.00454738]
[1641758876134,1.59306294,3207.2,3206.9,0.00454738]
[1641758876336,0.7795669,3207.1,3206.9,0.00454738]
[1641758876533,7.0743896,3207.0,3206.9,0.00454738]
[1641758876733,7.0743896,3207.0,3206.4,0.0073895]
[1641758876935,1.5593469,3206.8,3206.4,0.0073895]
[1641758877133,1.5593469,3206.8,3206.3,0.4073895]
[1641758877134,1.29155196,3206.7,3206.3,0.4073895]
[1641758877335,0.779674,3206.6,3206.3,0.4073895]
[1641758877536,0.779674,3206.6,3205.8,0.45]
[1641758877835,1.191433,3206.1,3205.9,0.00284212]
[1641758878090,0.779674,3206.6,3206.0,0.77965]
[1641758878290,0.779674,3206.6,3205.9,1.56204212]
[1641758878486,0.779674,3206.6,3206.1,0.00170527]
[1641758878685,0.00170527,3206.7,3205.9,1.5592]
[1641758878686,0.00170527,3206.7,3206.0,0.0022737]
[1641758879088,1.40820575,3206.3,3206.0,0.0022737]
[1641758879886,1.40820575,3206.3,3206.2,0.7796]
[1641758880289,1.40820575,3206.3,3206.2,0.78073685]
[1641758880488,1.40820575,3206.3,3206.2,0.00113685]
[1641758880891,1.40820575,3206.3,3206.0,0.0022737]
[1641758881092,1.70820575,3206.3,3206.0,0.0022737]
[1641758881291,0.00985513,3206.2,3206.0,0.0022737]
[1641758881489,0.7798468,3205.7,3205.5,0.00511581]
[1641758882133,1.47643316,3205.5,3205.4,0.00568424]
[1641758884234,1.47643316,3205.5,3205.3,0.00625266]
[1641758884433,1.32414391,3205.7,3205.4,0.01033293]
[1641758884734,1.29539788,3205.6,3205.5,0.00511581]
[1641758885335,0.7798959,3205.5,3205.3,0.00625266]
[1641758885983,1.0798959,3205.5,3205.3,0.00625266]
[1641758888086,7.35516087,3205.2,3204.5,4.50549997]
[1641758888390,5.6,3204.4,3204.0,2.9902]
[1641758888587,5.2,3204.3,3203.7,0.879909]
[1641758888788,1.45010214,3204.2,3203.7,0.879909]
[1641758888987,1.45010214,3204.2,3203.8,0.00852635]
[1641758889236,1.18719559,3204.0,3203.8,0.00852635]
[1641758889632,0.7803226,3203.8,3203.2,0.01193689]
[1641758889932,1.0803226,3203.8,3203.2,0.01193689]
[1641758890333,1.25769181,3203.3,3203.2,0.01193689]
[1641758891034,1.25769181,3203.3,3203.1,0.01250532]
[1641758891235,0.7801759,3204.4,3203.2,0.45]
[1641758891439,6.87786647,3204.5,3203.2,0.53500875]
[1641758891635,6.87786647,3204.5,3203.3,0.13056847]
[1641758891836,6.87786647,3204.5,3203.7,0.78009]
[1641758892035,6.87786647,3204.5,3203.8,0.45851802]
[1641758892234,1.51304022,3204.3,3203.8,0.45]
[1641758892435,1.51304022,3204.3,3203.9,0.00795793]
[1641758892634,1.51304022,3204.3,3204.0,0.45]
[1641758893087,1.51304022,3204.3,3204.1,0.00682108]
[1641758893783,6.79983647,3204.5,3204.2,0.00607382]
[1641758893989,6.79983647,3204.5,3204.3,0.45]
[1641758894186,6.79983647,3204.5,3204.3,0.53595845]
[1641758894384,6.79983647,3204.5,3204.4,6.35511581]
[1641758894585,6.79983647,3204.5,3204.4,6.88539003]
[1641758894785,6.79983647,3204.5,3204.4,8.18539003]
[1641758894989,6.79983647,3204.5,3204.4,9.29358646]
[1641758895587,6.79983647,3204.5,3204.4,7.18539003]
[1641758896187,6.79983647,3204.5,3204.4,7.96531003]
[1641758897932,6.79983647,3204.5,3204.4,8.04332003]
[1641758898333,6.79983647,3204.5,3204.4,8.41332003]
[1641758898733,6.79983647,3204.5,3204.4,8.11332003]
[1641758898936,6.79983647,3204.5,3204.4,8.03531003]
[1641758899136,6.79983647,3204.5,3204.4,9.40738959]
[1641758899336,6.79983647,3204.5,3204.4,8.03531003]
[1641758899735,6.79983647,3204.5,3204.4,9.23289832]
[1641758900489,6.79983647,3204.5,3204.4,9.53289832]
[1641758901484,6.79983647,3204.5,3204.4,10.8454112]
[1641758901689,6.79983647,3204.5,3204.4,9.53289832]
[1641758902085,6.79983647,3204.5,3204.4,10.53289832]
[1641758902285,0.56202647,3204.5,3204.4,39.53153826]
[1641758902485,0.56202647,3204.5,3204.4,39.52913826]
[1641758902685,2.58826397,3205.2,3204.5,9.05]
[1641758902887,2.58826397,3205.2,3204.8,0.77972]
[1641758903185,2.58826397,3205.2,3204.9,1.63775044]
[1641758903585,2.58826397,3205.2,3205.0,0.00170527]
[1641758903786,2.58826397,3205.2,3205.1,0.45]
[1641758904239,2.58826397,3205.2,3205.1,0.53141107]
[1641758904841,2.58826397,3205.2,3204.6,0.07799]
[1641758904842,0.65633937,3204.9,3204.6,0.45]
[1641758905039,0.00684084,3204.8,3204.5,0.08027422]
[1641758905239,0.65633937,3204.9,3204.7,0.00227369]
[1641758905639,0.65633937,3204.9,3204.5,0.00341054]
[1641758905840,1.26793317,3204.8,3204.5,0.00341054]
[1641758906041,1.56793317,3204.8,3204.5,0.00341054]
[1641758906845,1.26793317,3204.8,3204.5,0.00341054]
[1641758908283,0.00761667,3204.7,3204.5,0.00341054]
[1641758908484,1.26793317,3204.8,3204.5,0.00341054]
[1641758913041,2.04803147,3204.8,3204.5,0.00341054]
[1641758915045,1.26793317,3204.8,3204.5,0.00341054]
[1641758917394,2.34803687,3204.8,3204.5,0.00341054]
[1641758917594,2.34803687,3204.8,3204.6,1.054e-05]
[1641758917595,9.42866799,3204.7,3204.6,1.054e-05]
[1641758917795,9.49158525,3204.7,3204.6,1.054e-05]
[1641758918194,10.49158525,3204.7,3204.6,1.054e-05]
[1641758919632,13.30843714,3204.7,3204.6,1.054e-05]
[1641758919835,1.09158525,3204.7,3204.6,1.054e-05]
[1641758920034,0.07913685,3204.7,3204.6,1.054e-05]
[1641758920232,0.00113685,3204.7,3204.6,1.054e-05]
[1641758920632,3.55113685,3204.7,3204.6,1.054e-05]
[1641758921233,0.00113685,3204.7,3204.6,1.054e-05]
[1641758924583,3.65113685,3204.7,3204.6,1.054e-05]
[1641758924985,0.00113685,3204.7,3204.6,1.054e-05]
[1641758931286,0.00113685,3204.7,3204.6,0.77998054]
[1641758931482,0.00113685,3204.7,3204.6,10.92998054]
[1641758931781,0.00113685,3204.7,3204.6,2.27959027]
[1641758931985,0.00113685,3204.7,3204.6,2.57959027]
[1641758932483,0.00112631,3204.7,3204.6,2.27957973]
[1641758933483,0.00112631,3204.7,3204.6,2.57957973]
[1641758934249,0.00112631,3204.7,3204.6,2.27957973]
[1641758935146,0.00112631,3204.7,3204.6,2.22957973]
[1641758935545,0.00112631,3204.7,3204.6,2.52957973]
[1641758936448,2.58826397,3205.2,3205.0,0.02780172]
[1641758936649,0.00143602,3206.2,3205.8,1.32449967]
[1641758936848,0.00143602,3206.2,3205.8,1.77449967]
[1641758937046,0.00143602,3206.2,3205.8,2.07449967]
[1641758937849,0.00143602,3206.2,3205.9,1.55916]
[1641758938287,1.34358522,3206.5,3205.9,1.55916]
[1641758938485,1.34358522,3206.5,3205.9,1.85916]
[1641758939083,1.34358522,3206.5,3206.2,0.77961]
[1641758939284,2.65440399,3206.7,3206.2,0.77961]
[1641758939483,0.01193689,3206.8,3206.2,0.77961]
[1641758939685,3.6935,3206.9,3206.2,0.77961]
[1641758939686,0.01080005,3206.6,3206.3,0.02062215]
[1641758939887,0.01136847,3206.7,3206.2,0.77961]
[1641758940086,0.01023162,3206.5,3206.2,0.77961]
[1641758940283,1.13995529,3206.6,3205.9,1.55916]
[1641758940483,0.0096632,3206.4,3205.9,2.00916]
[1641758940685,0.01023162,3206.5,3205.9,2.00916]
[1641758940888,0.00909478,3206.3,3205.9,2.00916]
[1641758941086,0.0096632,3206.4,3205.5,0.52795]
[1641758941286,0.00852635,3206.2,3205.2,0.07797]
[1641758941587,0.7798914,3205.6,3205.1,0.45]
[1641758941836,1.22610341,3205.4,3205.1,0.45]
[1641758942235,0.00341054,3205.3,3205.1,0.45]
[1641758942635,0.00284212,3205.2,3205.1,0.45]
[1641758948385,0.00284212,3205.2,3204.9,0.48453934]
[1641758948591,0.00284212,3205.2,3205.0,0.45]
[1641758948886,0.00227369,3205.1,3205.0,0.45]
[1641758949837,0.00227369,3205.1,3205.0,2.00961]
[1641758950238,0.00227369,3205.1,3205.0,8.55961]
[1641758950739,0.00227369,3205.1,3205.0,9.90176076]
[1641758950939,0.00227369,3205.1,3205.0,10.90176076]
[1641758951139,0.00227369,3205.1,3205.0,9.90176076]
[1641758951336,0.00227369,3205.1,3205.0,10.90176076]
[1641758952989,0.00227369,3205.1,3205.0,3.35176076]
[1641758953186,0.00227369,3205.1,3205.0,7.00176076]
[1641758953386,0.00227369,3205.1,3205.0,3.35176076]
[1641758954186,0.00227369,3205.1,3205.0,3.65176076]
[1641758956393,0.00227369,3205.1,3204.9,0.48453934]
[1641758956841,0.00170527,3205.0,3204.9,0.48453934]
[1641758962287,0.00170527,3205.0,3204.9,0.47388685]
[1641758964091,10.00170527,3205.0,3204.9,0.47388685]
[1641758964537,0.7802227,3204.4,3203.8,7.3935]
[1641758964738,0.7802227,3204.4,3203.9,0.78023]
[1641758964938,0.64709719,3204.4,3203.9,0.78477739]
[1641758965539,1.04720863,3204.3,3203.9,0.78477739]
[1641758965738,1.3255679,3204.2,3203.9,0.78477739]
[1641758967042,3.71333685,3204.9,3203.9,0.78477739]
[1641758967253,3.71333685,3204.9,3204.0,0.01200312]
[1641758967440,3.71333685,3204.9,3204.4,0.78009]
[1641758967640,0.00113685,3204.9,3204.5,0.00665661]
[1641758967843,0.00113685,3204.9,3204.5,0.00779346]
[1641758968087,0.00113685,3204.9,3204.5,0.00113685]
[1641758968484,0.00113685,3204.9,3204.2,1.56017]
[1641758968485,1.18379371,3204.7,3204.3,0.00227369]
[1641758968886,1.18379371,3204.7,3204.4,0.78012]
[1641758969089,0.78124275,3204.9,3204.4,0.78012]
[1641758969090,0.00113685,3204.9,3204.4,0.78012]
[1641758969388,0.00113685,3204.9,3204.6,0.00839084]
[1641758969785,0.00113685,3204.9,3204.6,0.45]
[1641758969987,0.00113685,3204.9,3204.7,3.58251875]
[1641758970184,0.00113685,3204.9,3204.7,0.78005]
[1641758971189,1.45912015,3204.9,3204.7,0.78005]
[1641758971950,1.45912015,3204.9,3204.6,0.45]
[1641758972746,1.45912015,3204.9,3204.7,0.78004]
[1641758975786,1.45912015,3204.9,3204.5,1.56115685]
[1641758976286,0.7801276,3204.8,3204.5,0.00113685]
[1641758976885,3.49336595,3204.8,3204.5,0.00113685]
[1641758977287,1.0041466,3204.7,3204.1,0.00341054]
[1641758977488,0.3,3204.4,3204.1,0.00341054]
[1641758977688,0.3,3204.4,3203.7,0.00568423]
[1641758978288,1.3,3204.7,3203.7,0.00568423]
[1641758978488,1.24740817,3203.8,3203.7,0.00568423]
[1641758979941,1.24740817,3203.8,3203.7,0.78592423]
[1641758980742,3.8378,3204.7,3203.7,0.78592423]
[1641758980942,3.8378,3204.7,3203.8,0.02288221]
[1641758981146,3.8378,3204.7,3204.2,0.78011]
[1641758981441,0.00113685,3204.9,3204.3,0.02928465]
[1641758981644,1.18244299,3204.6,3204.3,1.21911604]
[1641758981842,1.18244299,3204.6,3204.4,0.00170527]
[1641758982244,1.18244299,3204.6,3204.4,0.7801]
[1641758982442,0.00113685,3204.9,3204.4,0.7801]
[1641758983011,0.00227369,3204.8,3204.4,0.7801]
[1641758983399,0.7800155,3205.3,3204.6,5.3344101]
[1641758983400,0.00170527,3204.7,3204.6,5.3344101]
[1641758983600,0.00170527,3204.7,3204.5,0.45]
[1641758983900,1.46406122,3205.2,3204.6,3.82999]
[1641758984099,1.46406122,3205.2,3204.6,0.77999]
[1641758984298,0.00397896,3205.1,3204.6,0.77999]
[1641758984700,0.00341054,3205.0,3204.6,0.77999]
[1641758985100,0.00284212,3204.9,3204.6,0.77999]
[1641758985503,0.00227369,3204.8,3204.6,0.77999]
[1641758985901,0.00170527,3204.7,3204.6,0.77999]
[1641758986746,1.55010806,3204.7,3204.6,0.77999]
[1641758987450,1.55010806,3204.7,3204.6,1.22999]
[1641758988046,1.55010806,3204.7,3204.6,0.45]
[1641758989249,1.55010806,3204.7,3204.4,0.78012]
[1641758989650,0.00113685,3204.6,3204.4,0.78012]
[1641758993998,0.00113685,3204.6,3204.4,1.23012]
[1641758994842,0.00113685,3204.6,3204.4,2.37432216]
[1641758995745,0.00113685,3204.6,3204.4,2.67432216]
[1641758997346,2.65691601,3205.5,3204.6,0.05085694]
[1641758997546,2.65691601,3205.5,3205.1,0.02566087]
[1641758997752,0.00454738,3205.4,3205.2,0.45]
[1641758997998,0.00454738,3205.4,3205.3,6.97820137]
[1641758998190,0.02981601,3205.5,3205.3,8.20784667]
[1641758998392,1.17587711,3206.1,3205.4,6.95]
[1641758998591,1.17587711,3206.1,3205.5,1.52797]
[1641758998792,0.00795792,3206.0,3205.5,1.94557]
[1641758998991,5.15957621,3206.6,3205.7,0.00634747]
[1641758999192,5.15957621,3206.6,3206.2,2.30615048]
[1641758999391,0.00284212,3206.5,3206.2,2.30615048]
[1641758999592,0.00284212,3206.5,3206.3,0.0062759]
[1641758999791,5.15957621,3206.6,3206.3,0.7794538]
[1641758999792,0.0022737,3206.4,3206.3,0.7794538]
[1641758999997,0.0022737,3206.4,3206.3,1.5589438]
[1641759000192,3.8299,3207.1,3206.3,1.5589438]
[1641759000395,3.8299,3207.1,3206.3,0.77949]
[1641759000592,0.00341054,3207.0,3206.7,1.32618168]
[1641759000994,0.00284212,3206.9,3206.7,1.32618168]
[1641759001393,0.00227369,3206.8,3206.6,1.55904]
[1641759001838,0.00170527,3206.7,3206.6,1.55904]
[1641759003842,0.00170527,3206.7,3206.2,1.55923]
[1641759004238,0.00659783,3206.6,3206.1,37.47500731]
[1641759004438,0.00113685,3206.6,3206.1,37.47500731]
[1641759004639,0.7797425,3206.5,3206.2,0.00113685]
[1641759005147,1.96547298,3206.5,3206.2,0.00113685]
[1641759005991,0.03237796,3206.4,3206.1,0.00170527]